Cogmind - Beta 16 @@@ ROGUE MODE // 2026.02.08 @ 21:16:02 Player: RHAHI Result: Destroyed by Piercing Trap Performance ------------- Evolutions (0) 0 Regions Visited (2) 400 Robots Destroyed (45) 225 Value Destroyed (990) 990 Prototype IDs (16) 320 Alien Tech Used (0) 0 Bonus (0) 0 TOTAL SCORE: 1935 Bonus ------- None Cogmind --------- Core Integrity 0/250 Matter 300/300 Energy 188/200 System Corruption 0% Temperature Cool (0) Movement Rolling (145) Ox3 Location -10/Subcaves Parts ------- > --- POWER (1) -------- Subdweller Power Source > --- PROPULSION (2) --- Spiked Treads Compact Wheel > --- UTILITY (2) ------ High-capacity Storage Unit Core Shielding > --- WEAPON (2) ------- Subdweller Beam Cannon Mining Laser > --- INVENTORY (20) --- Subdweller Power Source Subdweller Power Source Subdweller Power Source Subdweller Power Source Subdweller Monowheel Subdweller Monowheel Subdweller Optics Subdweller Optics Subdweller Optics Subdweller Optics Improved Terrain Scanner Seismic Detector Scrap Shield Hacking Suite Subdweller Laser Subdweller Laser Subdweller Beam Cannon Subdweller Beam Cannon Subdweller Machine Gun Peak State ------------ > --- POWER ------------ Subdweller Power Source > --- PROPULSION ------- Spiked Treads Compact Wheel > --- UTILITY ---------- High-capacity Storage Unit Improved Terrain Scanner > --- WEAPON ----------- Subdweller Laser Subdweller Beam Cannon > --- INVENTORY -------- Subdweller Power Source Subdweller Power Source Subdweller Power Source Spiked Treads Subdweller Monowheel Subdweller Monowheel Weight Redist. System Subdweller Optics Subdweller Optics Subdweller Optics Subdweller Optics Seismic Detector Core Shielding Scrap Shield Hacking Suite EM Shotgun Assault Rifle Subdweller Machine Gun Mining Laser [Rating: 16] Favorites ----------- Power Ion Engine Engine Ion Engine Propulsion Light Treads Treads Light Treads Wheel Compact Wheel Utility High-capacity Storage Unit Device Seismic Detector Storage High-capacity Storage Unit Protection Core Shielding Weapon Assault Rifle Energy Gun Medium Laser Energy Cannon Subdweller Beam Cannon Ballistic Gun Assault Rifle Special Weapon Mining Laser Special Melee Weapon Datajack Build | -11 -10 -10 ------- Run | Yrd Mat Sub Slots Evolved . | . . . Power . | . . . Propulsion . | . . . Utility . | . . . Weapon . | . . . Parts Attached 33 | 7 13 13 Power 5 | 1 2 2 Engine 5 | 1 2 2 Core . | . . . Reactor . | . . . Propulsion 8 | 2 3 3 Treads 6 | . 3 3 Leg . | . . . Wheel 2 | 2 . . Hover . | . . . Flight . | . . . Utility 8 | 2 3 3 Device 4 | 1 1 2 Storage 3 | 1 2 . Processor . | . . . Hackware . | . . . Protection 1 | . . 1 Artifact . | . . . Weapon 12 | 2 5 5 Energy Gun 4 | 1 1 2 Energy Cannon 3 | . . 3 Ballistic Gun 3 | 1 2 . Ballistic Cannon . | . . . Launcher . | . . . Special Weapon 1 | . 1 . Impact Weapon . | . . . Slashing Weapon . | . . . Piercing Weapon . | . . . Special Melee Weapon 1 | . 1 . Unidentified Prototypes . | . . . Parts Lost 8 | . 2 6 Power . | . . . Propulsion 5 | . 1 4 Utility . | . . . Weapon 3 | . 1 2 Highest Loss Streak 2 | . 1 2 To Critical Strikes . | . . . Average Backups 17 | 6 18 18 Power 3 | . 4 2 Propulsion 2 | 3 3 2 Utility 7 | . 6 8 Weapon 4 | 1 3 4 Tool/Special . | . . . Unused Backups 30 | 3 3 24 Power 7 | . 1 6 Propulsion 7 | 2 2 3 Utility 9 | . . 9 Weapon 7 | 1 . 6 Tool/Special . | . . . Average Slot Usage (%) 96 | . 99 93 Engine 14 | . 14 14 Treads 20 | . 25 17 Wheel 5 | . 2 7 Device 12 | . 14 11 Storage 14 | . 14 14 Protection 1 | . . 2 Energy Gun 4 | . 5 3 Energy Cannon 4 | . . 7 Ballistic Gun 13 | . 21 7 Special Weapon 2 | . 1 2 Special Melee Weapon 1 | . . 2 Peak Build Rating 16 | 10 10 16 Average Rating 10 | 8 8 12 On Entrance 6 | . 10 9 Avg Prop Armor Cover (%) 15 | . . 15 Naked Turns . | . . . Heaviest Build 62 | 13 50 62 Greatest Support 40 | 32 40 40 Greatest Overweight (x) 15 | . 1 15 Average Overweight (x) 1 | . . 2 Largest Inventory Capacity 20 | 8 20 20 Average Capacity 19 | 7 19 20 Most Carried 20 | 8 20 20 Average Carried 18 | 6 18 19 Final Capacity 20 | 8 20 20 Final Carried 20 | 8 19 20 Class Distribution -------------------- 100% | Mutant Dominant Class ---------------- Mutant | -10/Materials Mutant | -10/Subcaves Resources | -11 -10 -10 ----------- Run | Yrd Mat Sub Matter Collected 1271 | 307 531 433 Remotely . | . . . Salvage Created 1359 | 126 579 654 Parts 98 | 22 48 28 Haulers Intercepted 2 | . 2 . Recyclers Shooed 1 | 1 . . Parts Field Recycled . | . . . Retrieved Matter . | . . . Parts Self-Destructed 4 | . . 4 Prevented . | . . . Parts Restored . | . . . Kills | -11 -10 -10 ------- Run | Yrd Mat Sub Combat Hostiles Destroyed 29 | . 15 14 Guns 20 | . 15 5 Cannons 9 | . . 9 Classes Destroyed 8 | 1 6 1 Builder 1 | . 1 . Tunneler 9 | 8 1 . Hauler 2 | . 2 . Operator 1 | . 1 . Watcher 3 | . 3 . Swarmer 9 | . 9 . Grunt 6 | . 6 . Subdweller 14 | . . 14 Best Kill Streak 5 | 3 5 3 Combat Bots Only 3 | . 3 3 Max Kills in Single Turn 2 | 1 2 1 Gunslinging . | . . . Exploded . | . . . Melee . | . . . Uniques/NPCs Destroyed . | . . . Combat | -11 -10 -10 -------- Run | Yrd Mat Sub Hostile Shots Fired 160 | . 92 68 Missed 40 | . 23 17 Hits 120 | . 69 51 Projectile 120 | . 69 51 Critical Strikes 1 | . . 1 Damage Taken 1882 | . 626 1256 Core 254 | . 87 167 Absorbed by Shields . | . . . Redirected to Shielding 34 | . . 34 Core Remaining (%) 100 | 100 . . Volleys Fired 143 | 16 76 51 Largest 2 | 2 2 2 Hottest 160 | 70 100 160 Shots Fired 271 | 31 145 95 Gun 219 | 31 141 47 Cannon 42 | . . 42 Launcher . | . . . Special 10 | . 4 6 Kinetic 142 | 16 97 29 Thermal 118 | 15 48 55 Explosive . | . . . Electromagnetic 11 | . . 11 Robot Hit Streak 34 | 5 8 34 Robot Miss Streak 3 | 2 3 1 Penetration Max . | . . . Secondary Targets 2 | . 2 . Max Gunslinging Chain 1 | . 1 . Shots Hit Robots 176 | 16 81 79 Core Hits 67 | 9 35 23 Critical Kills . | . . . Critical Parts Destroyed 1 | . 1 . Critical Strikes 4 | 1 3 . Burn 3 | 1 2 . Destroy 1 | . 1 . Melee Attacks 1 | . 1 . Impact . | . . . Slashing . | . . . Piercing . | . . . Sneak Attacks 1 | . 1 . Combat Hostiles . | . . . Follow-up Attacks . | . . . Damage Inflicted 2802 | 197 918 1687 Guns 1701 | 197 918 586 Cannons 1101 | . . 1101 Explosions . | . . . Melee . | . . . Ramming . | . . . Kinetic 970 | 73 558 339 Thermal 1677 | 124 360 1193 Explosive . | . . . Electromagnetic 155 | . . 155 Impact . | . . . Slashing . | . . . Piercing . | . . . Highest Corruption . | . . . Average Corruption . | . . . Corruption Purged . | . . . Corruption Blocked . | . . . Overload Shots . | . . . Overflow Damage . | . . . Projectiles . | . . . Explosions . | . . . Melee . | . . . Knockbacks . | . . . Impact . | . . . Kinetic . | . . . Secondary . | . . . Self-Inflicted Damage . | . . . Shots . | . . . Rammed . | . . . Targets Rammed . | . . . Kicked . | . . . Crushed . | . . . Highest Temperature 220 | 36 220 207 Average Temperature 45 | 13 51 54 Received Heat Transfer 354 | . 150 204 Siege Activations . | . . . Martial Activations . | . . . Shielding Activations . | . . . Robots Disrupted . | . . . Combat Hostiles . | . . . Robots Corrupted . | . . . Combat Hostiles . | . . . Parts Fried 2 | . . 2 Impact Corruptions . | . . . Robots Melted . | . . . Combat Hostiles . | . . . Parts Melted 10 | 1 2 7 Heat Transferred 3134 | 444 1221 1469 Parts Sabotaged . | . . . Parts Stolen . | . . . Parts Stripped . | . . . Power Chain Reactions . | . . . Alert | -11 -10 -10 ------- Run | Yrd Mat Sub Maximum Alert Level . | . . . Low Security (%) 100 | 100 100 . Level 1 . | . . . Level 2 . | . . . Level 3 . | . . . Level 4 . | . . . Level 5 . | . . . High Security . | . . . Max Security . | . . . Peak Influence 166 | 15 166 . Initial 3 | . 3 . Average 50 | 1 55 . Influence Increases 610 | 40 570 . Destroy 0b10 Robot/C 300 | . 300 . Destroy 0b10 Robot/NC 80 | 40 40 . Destroy Leader 70 | . 70 . Trap Triggered on 0b10 10 | . 10 . Successful Hack 39 | . 39 . Select Force Hacks 60 | . 60 . Destroy Structure 6 | . 6 . Lose Combat Pursuer 45 | . 45 . Influence Decreases 610 | 35 537 38 Entered New Map 21 | . 2 19 Time Decay 569 | 35 515 19 Lost Part 20 | . 20 . Squads Dispatched 3 | . 3 . Investigation 2 | . 2 . Extermination . | . . . Reinforcement 1 | . 1 . Assault . | . . . Garrison . | . . . Intercept . | . . . Searches Triggered . | . . . Construction Impeded . | . . . Haulers Reinforced . | . . . Active Scanning Responses . | . . . Cargo Convoy Interrupts . | . . . Stealth | -11 -10 -10 --------- Run | Yrd Mat Sub Distress Signals . | . . . Communications Jammed . | . . . Distress Signals . | . . . Times Spotted 38 | . 23 15 Peak Tracking Total 4 | . 4 3 Tactical Retreats 1 | . 1 . Traps | -11 -10 -10 ------- Run | Yrd Mat Sub Traps Triggered 5 | . 1 4 Indirectly . | . . . Trap Hack Attempts 174 | . 21 153 Triggered . | . . . Disarmed 1 | . . 1 Reprogrammed 14 | . 3 11 Reused 1 | . 1 . Traps Extracted . | . . . Installed . | . . . Triggered 1 | . 1 . Machines | -11 -10 -10 ---------- Run | Yrd Mat Sub Machines Disabled 1 | . . 1 Max in Single Turn 1 | . . 1 Machines Repaired . | . . . Machines Dismantled . | . . . Machines Sabotaged . | . . . Overloaded Fab Kills . | . . . Hacking | -11 -10 -10 --------- Run | Yrd Mat Sub Machines Accessed 13 | . 9 4 Terminals 7 | . 7 . Fabricators . | . . . Repair Stations . | . . . Recycling Units 2 | . 2 . Scanalyzers . | . . . Garrison Access . | . . . Total Hacks 38 | . 31 7 Successful 26 | . 19 7 Failed 11 | . 11 . Catastrophic 1 | . 1 . Database Lockouts 1 | . 1 . Manual 20 | . 18 2 Terminals 27 | . 27 . Fabricators . | . . . Repair Stations . | . . . Recycling Units 4 | . 4 . Scanalyzers . | . . . Garrison Access . | . . . Terminal Hacks 13 | . 6 7 Record 4 | . . 4 Robot Schematic 1 | . 1 . Robot Analysis 2 | . 2 . Prototype ID Bank 2 | . 2 . Open Door 1 | . . 1 Zone Layout 1 | . 1 . Proto ID Catalog 1 | . . 1 Release Object 1 | . . 1 Fabricator Hacks . | . . . Repair Station Hacks . | . . . Recycling Unit Hacks . | . . . Scanalyzer . | . . . Garrison Access Hacks . | . . . Unauthorized Hacks 13 | . 13 . Terminals 10 | . 10 . Track 1 | . 1 . Botnet 4 | . 4 . Skim 5 | . 5 . Fabricators . | . . . Repair Stations . | . . . Recycling Units 3 | . 3 . Reject 1 | . 1 . Tunnel 2 | . 2 . Scanalyzers . | . . . Garrison Access . | . . . Data Cores Recovered . | . . . Used . | . . . Hacking Detections 7 | . 7 . Full Trace Events 1 | . 1 . Feedback Events . | . . . Feedback Blocked . | . . . Robot Schematics Acquired 1 | . 1 . Robots Built . | . . . Authchips . | . . . Time . | . . . Total Robot Build Rating . | . . . Part Schematics Acquired . | . . . Parts Built . | . . . Authchips . | . . . Time . | . . . Total Part Build Rating . | . . . Part Studies Acquired . | . . . Parts Repaired . | . . . Time . | . . . Parts Recycled . | . . . Recycled Matter . | . . . Retrieved Matter . | . . . Retrieved Components . | . . . Parts Scanalyzed . | . . . Part Schematics Acquired . | . . . Parts Damaged . | . . . Bothacking | -11 -10 -10 ------------ Run | Yrd Mat Sub Used RIF Installer . | . . . Robots Hacked 1 | . 1 . Non-combat 1 | . 1 . Combat . | . . . Robot Hacks Applied 1 | . 1 . no_distress 1 | . 1 . Relay Couplers Released . | . . . Fabnet Peak Effective % . | . . . Robots Rewired . | . . . Allies Hacked . | . . . Hacks Repelled . | . . . Allies | -11 -10 -10 -------- Run | Yrd Mat Sub Total Allies . | . . . Largest Group . | . . . Highest-Rated Group . | . . . Highest-Rated Ally . | . . . Total Orders . | . . . Ally Attacks . | . . . Total Damage . | . . . Kills . | . . . Allies Corrupted . | . . . Allies Melted . | . . . Intel | -11 -10 -10 ------- Run | Yrd Mat Sub Active Infowar (turns) 5047 | 176 2300 2571 Terrain 2108 | 176 92 1840 Structural 40 | . . 40 Seismic 2899 | . 2208 691 Robot Analysis Total 2 | . 2 . Derelict Logs Recovered 1 | . . 1 Drone Launches . | . . . Drone Recoveries . | . . . Exploration | -11 -10 -10 ------------- Run | Yrd Mat Sub Turns Passed 5705 | 232 2304 3169 Spaces Moved 2167 | 144 900 1123 Core 39 | 11 . 28 Treads 1130 | . 768 362 Legs . | . . . Wheels 998 | 133 132 733 Hover . | . . . Flight . | . . . Fastest Speed 50 | 50 100 130 Average Speed 204 | 96 221 204 Slowest Speed 800 | 100 240 800 Overloaded Moves . | . . . Propulsion Burnouts . | . . . Robots Hopped . | . . . Potential Cave-ins . | . . . Cave-ins Triggered . | . . . Exploration Rate (%) 55 | 5 99 62 Regions Visited 2 Branch Regions 1 Pre-discovered Areas 3 | . 2 1 Known Exits Taken 1 | . 1 . Unknown Exits Taken 1 | 1 . . Scrap Searched 2 | . . 2 Spaces Dug 4 | . 4 . Terrain Destroyed 5 | . 4 1 Melee . | . . . Projectile 5 | . 4 1 AOE . | . . . Terrain Rammed . | . . . Walls Destroyed . | . . . Machines Disabled . | . . . Actions | -11 -10 -10 --------- Run | Yrd Mat Sub Total 3151 | 205 1065 1881 Wait 518 | 23 21 474 Move 2165 | 143 899 1123 Hop . | . . . Pick Up 52 | 13 16 23 Fast Attach 13 | 5 5 3 Attach 10 | 2 3 5 Detach 1 | . 1 . Swap 42 | . 13 29 Drop 32 | 3 9 20 Fire 143 | 16 76 51 Melee 1 | . 1 . Ram . | . . . Kick . | . . . Crush . | . . . Escape Stasis . | . . . Rewire . | . . . Trap 174 | . 21 153 Miscellaneous . | . . . Route ------- -11/Scrapyard -10/Materials (discovered 6 exits: *Mat x3 / *Min x2 / *Sub) -10/Subcaves (discovered 2 exits: Mat / Rec) History --------- Turn | Location | Event 5 | -11/Scrapyard | Discovered new exit (range 15) 233 | -11/Scrapyard | Entered Materials 302 | -10/Materials | Build established: Mutant 347 | -10/Materials | Discovered new exit (range 16) 489 | -10/Materials | Discovered new exit (range 14) 927 | -10/Materials | Discovered new exit (range 8) 1348 | -10/Materials | Central database locked down 1377 | -10/Materials | Discovered new exit (range 8) 1765 | -10/Materials | Discovered new exit (range 16) 2221 | -10/Materials | Learned location of 2 exits from Subcaves 2258 | -10/Materials | Identified exit to Subcaves 2285 | -10/Materials | Learned location of 2 exits from Mines 2301 | -10/Materials | Learned Storage stockpile data 2322 | -10/Materials | Identified exit to Materials 2322 | -10/Materials | Identified exit to Mines 2345 | -10/Materials | Learned location of 2 exits from Materials 2537 | -10/Materials | Entered Subcaves 2538 | -10/Subcaves | Identified exit to Recycling 2538 | -10/Subcaves | Identified exit to Materials 2618 | -10/Subcaves | Shifting Twisted Machinery released Sub. Optics 2620 | -10/Subcaves | Shifting Twisted Machinery released Sub. Beam Cannon 2793 | -10/Subcaves | Core integrity fell below 50% 2897 | -10/Subcaves | Shifting Twisted Machinery released Mak. Power Source 2899 | -10/Subcaves | Shifting Twisted Machinery released Sub. Laser 4649 | -10/Subcaves | Shifting Twisted Machinery released Sub. Optics 4672 | -10/Subcaves | Learned Materials security intel 4704 | -10/Subcaves | Shifting Twisted Machinery released Sub. Beam Cannon 4943 | -10/Subcaves | Core integrity fell below 20% 5226 | -10/Subcaves | Visited Clippyterm 5231 | -10/Subcaves | Learned location of Deep Caves (-6) 5525 | -10/Subcaves | Disturbed a concealed Subdweller 5633 | -10/Subcaves | Visited 4L-MR0's lab 5706 | -10/Subcaves | Destroyed by Piercing Trap Last Messages --------------- Logs... >>Proto ID Catalog Downloading prototype IDs... Meta Core Arachnoskeleton Cargo Legs Tripod Weapons Platform Hoverbase Flightbrick Gun Armor Tower Shield Power Bank Rainbow Chip VL-GR5's Exoskeleton "Deathgrip" Powered Cannon 05683_ Testing Chamber breached. 05694_ Acquired 10 matter. 05706_ Triggered Piercing Trap. 05706_ Spikes shoot up from the floor. 05706_ Critical hit (Impale). Map ----- +----------------------------------------------------+ | ????????????????????????????????????? | | ????????????????????????????????????? | | ????????????????????????????????????? | | ????????????????????????????????????? | | ????????????????????????????????????? | | ????????????????????????????????????? | | ????????????????????????????????????? | | ????????????????????????????????????? | | ????????????????????????????????????? | | ????????????????????????????????????? | | ????????????????????????????????????? | | ????????????????????????????????????? | | ????????????????????????????????????? | | ????????????????????????????????????? | | ????????????????????????????????????? | | ????????????????????????????????????? | | ????????????????????????????????????? | | ????????????????????????????????????? | | ??????????????????### ??????????????? | | ?????????????????? ??????????????? | | ?????????????????? ???????????????? | | ?????????????????? #??????????????? | | ????#########????# ??????????????? | | ???##<<< ###?? ???????????????? | | ???#" << << < ### ????????????????? | | ???#"<<< << @ ## ?????????????????? | | ???#<<< << < ## #?????????????????? | | ???###<% ## # #?????????????????? | | ????###!##### ## #?????????????????? | | ????#" &"#?# #" $#?????????????????? | | ????#"=!"#?# ###????????? ?????? | | ????#*!""#?# # #???????# ?????? | | ????# X"#?# #<< #??????# ????? | | ????# ""#?#####" #???### ????? | | ????# #""#?????# ##?# ????? | | ????#!#""#?????## ## #???? | | ????######????### ???? | | ??????????????# ###??????? | | ??????????????# ##????????? | | ??????????????## ##?????????? | | ???????????????### #??????????? | | ???????????????#### ##??????????? | | ??????????????## ## #???????????? | | ??????????????# ####???????????? | | ??????????????## ###??????????????? | | ???????????????## ##???????????????? | | ???????????????## ###?????????????? | | ???????????????# #?????????????? | | ??????????????## #?????????????? | | ?????????#????# ##?????????????? | +----------------------------------------------------+ Best States ------------- Heat Dissipation 25 Energy Generation 15 Energy Capacity 250 Matter Stores 300 Matter Capacity 300 Sight Range 16 Terrain Scan Range 16 Terrain Scan Density 10 Core Shielding 20 Evasion (%) 40 Recoil Reduction 2 Item Schematics ----------------- None Robot Schematics ------------------ M-13 Machinist | -10/Materials | Hacked Fabricated ------------ Nothing Repaired ---------- Nothing Studied --------- None Alien Tech Used ----------------- None Achievements -------------- None Challenges ------------ None Game ------ Seed AntimatterCargoSource Manual? 0 Play Time 00:49:12 Cumulative 99.2 hours Start 2026.02.08 @ 20:20:52 End 2026.02.08 @ 21:16:02 Sessions 1 Manual Loads 0 Difficulty Rogue Special Mode None Game No. 37 Rogue 36 Adventurer 1 Explorer 0 Win Type - Total 2 Types 1/0/1/0/0/0/0/0/0/0 Lore% 43 Gallery% 44 Achievement% 39 Wizard Run 0 Options --------- Layout 2 ASCII 0 Keyboard 1 Movement Vi Keybinds 1 Fullscreen 2 Font 32/Terminus Map View 50x44 Zoom Use 0% Tactical HUD 1 Map Filters NONE Filters NONE Steam 1 RUN: 9753dcbd-f7cc-4172-9a12-7346bd82a439